Cogmind - Beta 12 @@@ ROGUE MODE // 2023.04.07 @ 13:32:06 Player: Plexion Result: Destroyed by DAS Turret with DAS Cannon Performance ------------- Evolutions (1) 500 Regions Visited (5) 1000 Robots Destroyed (50) 250 Value Destroyed (1026) 1026 Prototype IDs (25) 500 Alien Tech Used (0) 0 Bonus (300) 300 TOTAL SCORE: 3576 Bonus ------- Aligned with FarCom 300 Cogmind --------- Core Integrity 0/400 Matter 179/300 Energy 99/100 System Corruption 0% Temperature Cool (0) Movement Rolling (150) Ox4 Location -9/Exiles Parts ------- > --- POWER (1) -------- (None) > --- PROPULSION (3) --- Advanced Myomer Leg Advanced Myomer Leg Armored Wheel > --- UTILITY (3) ------ High-capacity Storage Unit Light Armor Plating Hardened Light Armor Plating > --- WEAPON (2) ------- Improved Assault Rifle Rocket Launcher > --- INVENTORY (20) --- Medium Matter Pod (100) Medium Matter Pod (72) Seismic Detector Light Armor Plating Light Armor Plating Medium Armor Plating Heavy Assault Rifle Slug Cannon Grenade Launcher Mini Grenade Launcher Peak State ------------ > --- POWER ------------ (None) > --- PROPULSION ------- Advanced Myomer Leg Advanced Myomer Leg Armored Wheel > --- UTILITY ---------- High-capacity Storage Unit Light Armor Plating Hardened Light Armor Plating > --- WEAPON ----------- Heavy Assault Rifle Improved Assault Rifle > --- INVENTORY -------- Medium Matter Pod Medium Matter Pod Medium Matter Pod Seismic Detector Light Armor Plating Light Armor Plating Medium Armor Plating 8R-AWN's Armor/EX Slug Cannon Grenade Launcher Rocket Launcher Mini Grenade Launcher [Rating: 31] Favorites ----------- Power Ion Engine Engine Ion Engine Propulsion Light Treads Treads Light Treads Leg Advanced Myomer Leg Wheel Armored Wheel Utility High-capacity Storage Unit Device Seismic Detector Storage High-capacity Storage Unit Processor Improved Targeting Computer Protection Medium Armor Plating Weapon Improved Assault Rifle Energy Gun Medium Laser Ballistic Gun Improved Assault Rifle Ballistic Cannon Slug Cannon Launcher Rocket Launcher Build | -11 -10 -10 -9 -9 -9 ------- Run | Jun Mat Min Mat Min Exi Slots Evolved 2 | . . . 2 . . Power . | . . . . . . Propulsion 1 | . . . 1 . . Utility 1 | . . . 1 . . Weapon . | . . . . . . Parts Attached 49 | 7 2 5 14 1 20 Power 4 | 1 . 1 2 . . Engine 4 | 1 . 1 2 . . Core . | . . . . . . Reactor . | . . . . . . Propulsion 16 | 3 . 1 5 1 6 Treads 10 | 2 . 1 4 . 3 Leg 2 | . . . . . 2 Wheel 4 | 1 . . 1 1 1 Hover . | . . . . . . Flight . | . . . . . . Utility 15 | 1 2 . 5 . 7 Device 2 | . . . 2 . . Storage 3 | 1 1 . 1 . . Processor 1 | . . . . . 1 Hackware . | . . . . . . Protection 9 | . 1 . 2 . 6 Artifact . | . . . . . . Weapon 14 | 2 . 3 2 . 7 Energy Gun 1 | 1 . . . . . Energy Cannon . | . . . . . . Ballistic Gun 7 | 1 . . 2 . 4 Ballistic Cannon 2 | . . 2 . . . Launcher 4 | . . 1 . . 3 Special Weapon . | . . . . . . Impact Weapon . | . . . . . . Slashing Weapon . | . . . . . . Piercing Weapon . | . . . . . . Special Melee Weapon . | . . . . . . Unidentified Prototypes 2 | . . . 1 . 1 Parts Lost 17 | . . 4 2 . 11 Power 4 | . . 1 2 . 1 Propulsion 6 | . . 1 . . 5 Utility 3 | . . 1 . . 2 Weapon 4 | . . 1 . . 3 Highest Loss Streak 11 | . . 4 1 . 11 To Critical Strikes 7 | . . . . . 7 Average Slot Usage (%) 96 | . 95 95 95 100 97 Engine 11 | . 14 13 10 11 9 Treads 24 | . 28 28 27 22 19 Wheel 5 | . . . 5 10 9 Device 6 | . . . 11 11 8 Storage 12 | . 14 14 11 11 11 Protection 10 | . 9 9 6 11 13 Energy Gun 3 | . 14 9 . . . Ballistic Gun 16 | . 14 9 14 22 20 Ballistic Cannon 3 | . . 8 7 . . Naked Turns . | . . . . . . Heaviest Build 67 | 14 22 25 61 61 67 Greatest Support 60 | 40 40 40 60 60 30 Greatest Overweight (x) 5 | 1 . . 5 5 5 Average Overweight (x) 2 | . . . 3 4 4 Largest Inventory Capacity 20 | 8 10 10 20 20 20 Average Capacity 16 | 7 8 10 19 20 20 Most Carried 20 | 3 5 8 20 19 20 Average Carried 11 | 1 3 6 12 18 16 Final Capacity 20 | 8 10 10 20 20 20 Final Carried 19 | 3 5 6 17 19 10 Class Distribution -------------------- 89% | Mutant 10% | Scavenger-Mutant Dominant Class ---------------- Mutant | -10/Materials Mutant | -10/Mines Mutant | -9/Materials Mutant | -9/Mines Mutant | -9/Exiles Resources | -11 -10 -10 -9 -9 -9 ----------- Run | Jun Mat Min Mat Min Exi Matter Collected 1843 | 270 173 58 655 28 659 Remotely . | . . . . . . Salvage Created 1645 | . 528 160 809 33 115 Parts 97 | . 32 4 49 9 3 Haulers Intercepted 3 | . 1 . 2 . . Recyclers Shooed 4 | . 1 . 3 . . Parts Field Recycled . | . . . . . . Retrieved Matter . | . . . . . . Parts Self-Destructed . | . . . . . . Prevented . | . . . . . . Kills | -11 -10 -10 -9 -9 -9 ------- Run | Jun Mat Min Mat Min Exi Combat Hostiles Destroyed 33 | . 11 3 15 . 4 Guns 21 | . 11 . 9 . 1 Cannons 6 | . . . 6 . . AOE 6 | . . 3 . . 3 Classes Destroyed 12 | . 6 1 3 1 1 Worker 2 | . . 1 1 . . Builder 2 | . . . 1 1 . Tunneler 1 | . . . . 1 . Hauler 3 | . 1 . 2 . . Recycler 5 | . 1 2 2 . . Mechanic 2 | . . . 2 . . Operator 1 | . 1 . . . . Watcher 4 | . 2 . 2 . . Swarmer 10 | . 3 3 4 . . Grunt 13 | . 8 . 5 . . Sentry 6 | . . . 6 . . Assembled 3 | . . . . . 3 Best Kill Streak 4 | . 3 4 4 1 2 Combat Bots Only 4 | . 3 3 4 . 2 Max Kills in Single Turn 3 | . 2 3 2 1 2 Gunslinging . | . . . . . . Exploded 2 | . . 2 . . 2 Melee . | . . . . . . Uniques/NPCs Destroyed 1 | . . . . . 1 8R-AWN (-9/Exiles) Combat | -11 -10 -10 -9 -9 -9 -------- Run | Jun Mat Min Mat Min Exi Damage Taken 2963 | . 526 141 855 . 1441 Core 536 | . 59 24 162 . 291 Absorbed by Shields . | . . . . . . Core Remaining (%) 83 | 100 . 66 . . . Volleys Fired 191 | . 51 4 70 4 62 Largest 2 | . 2 2 2 2 2 Hottest 83 | . 70 70 83 46 46 Shots Fired 363 | . 102 6 140 8 107 Gun 296 | . 102 4 89 8 93 Cannon 51 | . . . 51 . . Launcher 16 | . . 2 . . 14 Special . | . . . . . . Kinetic 294 | . 51 2 140 8 93 Thermal 53 | . 51 2 . . . Explosive 16 | . . 2 . . 14 Electromagnetic . | . . . . . . Robot Hit Streak 35 | . 16 3 15 7 35 Robot Miss Streak 4 | . 2 3 4 1 1 Penetration Max . | . . . . . . Secondary Targets . | . . . . . . Shots Hit Robots 261 | . 74 3 94 6 84 Core Hits 100 | . 29 4 35 3 29 Critical Kills . | . . . . . . Critical Parts Destroyed 3 | . . . 2 . 1 Critical Strikes 8 | . 4 . 2 . 2 Burn 4 | . 4 . . . . Destroy 4 | . . . 2 . 2 Melee Attacks . | . . . . . . Impact . | . . . . . . Slashing . | . . . . . . Piercing . | . . . . . . Sneak Attacks . | . . . . . . Combat Hostiles . | . . . . . . Follow-up Attacks . | . . . . . . Damage Inflicted 4568 | . 959 255 1659 87 1608 Guns 3173 | . 942 12 895 87 1237 Cannons 764 | . . . 764 . . Explosions 581 | . . 210 . . 371 Melee . | . . . . . . Ramming 50 | . 17 33 . . . Kinetic 3512 | . 517 12 1659 87 1237 Thermal 425 | . 425 . . . . Explosive 581 | . . 210 . . 371 Electromagnetic . | . . . . . . Impact . | . . . . . . Slashing . | . . . . . . Piercing . | . . . . . . Highest Corruption . | . . . . . . Average Corruption . | . . . . . . Corruption Purged . | . . . . . . Corruption Blocked . | . . . . . . Overload Shots . | . . . . . . Overflow Damage 90 | . . 36 53 . 1 Projectiles 53 | . . . 53 . . Explosions 37 | . . 36 . . 1 Melee . | . . . . . . Knockbacks 7 | . . . 7 . . Impact . | . . . . . . Kinetic 7 | . . . 7 . . Secondary . | . . . . . . Self-Inflicted Damage 87 | . . 79 . . 8 Shots 3 | . . 2 . . 1 Rammed 7 | . 3 4 . . . Targets Rammed 9 | . 3 6 . . . Kicked . | . . . . . . Crushed 2 | . . 2 . . . Highest Temperature 291 | . 291 18 160 . 43 Average Temperature 62 | . 73 10 67 . 18 Received Heat Transfer 609 | . 294 . 315 . . Siege Activations . | . . . . . . Robots Corrupted . | . . . . . . Combat Hostiles . | . . . . . . Parts Fried . | . . . . . . Impact Corruptions . | . . . . . . Robots Melted . | . . . . . . Combat Hostiles . | . . . . . . Parts Melted 1 | . 1 . . . . Heat Transferred 1554 | . 1554 . . . . Parts Sabotaged . | . . . . . . Parts Stolen . | . . . . . . Parts Stripped . | . . . . . . Power Chain Reactions . | . . . . . . Missiles Intercepted . | . . . . . . Alert | -11 -10 -10 -9 -9 -9 ------- Run | Jun Mat Min Mat Min Exi Peak Influence 259 | . 223 56 259 91 . Initial 81 | . . 4 1 81 . Average 71 | . 101 11 125 43 . Maximum Alert Level 1 | . 1 . 1 . . Low Security (%) 92 | 100 99 100 74 100 . Level 1 7 | . . . 25 . . Level 2 . | . . . . . . Level 3 . | . . . . . . Level 4 . | . . . . . . Level 5 . | . . . . . . High Security . | . . . . . . Max Security . | . . . . . . Squads Dispatched 3 | . 3 . . . . Investigation 2 | . 2 . . . . Extermination . | . . . . . . Reinforcement 1 | . 1 . . . . Assault . | . . . . . . Garrison . | . . . . . . Intercept . | . . . . . . Searches Triggered . | . . . . . . Construction Impeded . | . . . . . . Haulers Reinforced . | . . . . . . Active Scanning Responses . | . . . . . . Cargo Convoy Interrupts . | . . . . . . Stealth | -11 -10 -10 -9 -9 -9 --------- Run | Jun Mat Min Mat Min Exi Distress Signals 6 | . 2 . 4 . . Communications Jammed . | . . . . . . Distress Signals . | . . . . . . Times Spotted 73 | . 20 3 26 . 24 Peak Tracking Total 9 | . 4 3 4 . 9 Tactical Retreats 5 | . 1 . 1 . 3 Traps | -11 -10 -10 -9 -9 -9 ------- Run | Jun Mat Min Mat Min Exi Traps Triggered 2 | . 2 . . . . Indirectly . | . . . . . . Trap Hack Attempts . | . . . . . . Triggered . | . . . . . . Disarmed . | . . . . . . Reprogrammed . | . . . . . . Reused . | . . . . . . Traps Extracted . | . . . . . . Installed . | . . . . . . Triggered . | . . . . . . Exploded 3 | . . . . . 3 Machines | -11 -10 -10 -9 -9 -9 ---------- Run | Jun Mat Min Mat Min Exi Machines Disabled 4 | . . . . . 4 Max in Single Turn 1 | . . . . . 1 Machines Repaired . | . . . . . . Machines Sabotaged . | . . . . . . Overloaded Fab Kills . | . . . . . . Hacking | -11 -10 -10 -9 -9 -9 --------- Run | Jun Mat Min Mat Min Exi Machines Accessed 5 | . 3 . . . 2 Terminals 3 | . 3 . . . . Fabricators . | . . . . . . Repair Stations . | . . . . . . Recycling Units . | . . . . . . Scanalyzers . | . . . . . . Garrison Access . | . . . . . . Total Hacks 9 | . 7 . . . 2 Successful 2 | . . . . . 2 Failed 7 | . 7 . . . . Catastrophic 1 | . 1 . . . . Database Lockouts . | . . . . . . Manual 8 | . 7 . . . 1 Terminals 7 | . 7 . . . . Fabricators . | . . . . . . Repair Stations . | . . . . . . Recycling Units . | . . . . . . Scanalyzers . | . . . . . . Garrison Access . | . . . . . . Terminal Hacks 2 | . . . . . 2 Record 1 | . . . . . 1 EX-Prototype ID Bank 1 | . . . . . 1 Fabricator Hacks . | . . . . . . Repair Station Hacks . | . . . . . . Recycling Unit Hacks . | . . . . . . Scanalyzer . | . . . . . . Garrison Access Hacks . | . . . . . . Unauthorized Hacks . | . . . . . . Terminals . | . . . . . . Fabricators . | . . . . . . Repair Stations . | . . . . . . Recycling Units . | . . . . . . Scanalyzers . | . . . . . . Garrison Access . | . . . . . . Data Cores Recovered . | . . . . . . Used . | . . . . . . Hacking Detections 3 | . 3 . . . . Full Trace Events 1 | . 1 . . . . Feedback Events . | . . . . . . Feedback Blocked . | . . . . . . Robot Schematics Acquired . | . . . . . . Robots Built . | . . . . . . Authchips . | . . . . . . Time . | . . . . . . Total Robot Build Rating . | . . . . . . Part Schematics Acquired . | . . . . . . Parts Built . | . . . . . . Authchips . | . . . . . . Time . | . . . . . . Total Part Build Rating . | . . . . . . Parts Repaired . | . . . . . . Time . | . . . . . . Parts Recycled . | . . . . . . Recycled Matter . | . . . . . . Retrieved Matter . | . . . . . . Retrieved Components . | . . . . . . Parts Scanalyzed . | . . . . . . Part Schematics Acquired . | . . . . . . Parts Damaged . | . . . . . . Bothacking | -11 -10 -10 -9 -9 -9 ------------ Run | Jun Mat Min Mat Min Exi Used RIF Installer . | . . . . . . Robots Hacked . | . . . . . . Non-combat . | . . . . . . Combat . | . . . . . . Robot Hacks Applied . | . . . . . . Relay Couplers Released . | . . . . . . Fabnet Peak Effective % . | . . . . . . Robots Rewired . | . . . . . . Allies Hacked . | . . . . . . Hacks Repelled . | . . . . . . Allies | -11 -10 -10 -9 -9 -9 -------- Run | Jun Mat Min Mat Min Exi Total Allies 1 | . . . . 1 . Largest Group 1 | . . . . 1 1 Highest-Rated Group 31 | . . . . 31 31 Highest-Rated Ally 31 | . . . . 31 31 Total Orders . | . . . . . . Ally Attacks . | . . . . . . Total Damage . | . . . . . . Kills . | . . . . . . Allies Corrupted . | . . . . . . Allies Melted . | . . . . . . Intel | -11 -10 -10 -9 -9 -9 ------- Run | Jun Mat Min Mat Min Exi Robot Analysis Total . | . . . . . . Derelict Logs Recovered 2 | . . 1 . 1 . Drone Launches . | . . . . . . Drone Recoveries . | . . . . . . Exploration | -11 -10 -10 -9 -9 -9 ------------- Run | Jun Mat Min Mat Min Exi Turns Passed 5280 | 68 802 964 1106 777 1563 Spaces Moved 2667 | 40 368 585 435 453 786 Core 1 | 1 . . . . . Treads 1185 | 30 368 585 182 20 . Legs 2 | . . . . . 2 Wheels 1479 | 9 . . 253 433 784 Hover . | . . . . . . Flight . | . . . . . . Fastest Speed 50 | 50 160 160 155 165 150 Average Speed 163 | 140 160 160 170 168 163 Slowest Speed 240 | 160 160 160 240 240 190 Overloaded Moves . | . . . . . . Propulsion Burnouts . | . . . . . . Robots Hopped . | . . . . . . Cave-ins Triggered . | . . . . . . Exploration Rate (%) 57 | 3 59 93 39 80 70 Regions Visited 5 Branch Regions 3 Pre-discovered Areas 1 | . . . . . 1 Known Exits Taken 1 | . . . 1 . . Unknown Exits Taken 4 | 1 1 1 . 1 . Scrap Searched 2 | . . 1 . 1 . Spaces Dug 6 | . . . . . 6 Terrain Destroyed 40 | . . 14 8 . 18 Melee . | . . . . . . Projectile 8 | . . . 8 . . AOE 32 | . . 14 . . 18 Terrain Rammed . | . . . . . . Walls Destroyed . | . . . . . . Machines Disabled . | . . . . . . Actions | -11 -10 -10 -9 -9 -9 --------- Run | Jun Mat Min Mat Min Exi Total 3210 | 49 477 603 660 459 962 Wait 223 | . 51 . 114 . 58 Move 2662 | 39 367 584 434 452 786 Hop . | . . . . . . Pick Up 43 | 2 2 4 15 2 18 Fast Attach 17 | 7 1 . 7 . 2 Attach 12 | . . 3 1 . 8 Detach 4 | 1 . . 3 . . Swap 20 | . 1 2 6 1 10 Drop 29 | . 1 . 10 . 18 Fire 191 | . 51 4 70 4 62 Melee . | . . . . . . Ram . | . . . . . . Kick . | . . . . . . Crush 9 | . 3 6 . . . Escape Stasis . | . . . . . . Rewire . | . . . . . . Trap . | . . . . . . Miscellaneous . | . . . . . . Route ------- -11/Junkyard -10/Materials (discovered 3 exits: [*Mat x2] / [*Min]) -10/Mines (discovered 2 exits: [*Mat x2]) -9/Materials (discovered 3 exits: *Min / [*Sto x2]) -9/Mines (discovered 3 exits: [*Mat x2] / *Exi) -9/Exiles (discovered 2 exits: *Min x2) History --------- Turn | Location | Event 17 | -11/Junkyard | Discovered new exit (range 15) 69 | -11/Junkyard | Entered Materials 153 | -10/Materials | Discovered new exit (range 7) 335 | -10/Materials | Build established: Mutant 422 | -10/Materials | Discovered new exit (range 5) 815 | -10/Materials | Discovered new exit (range 9) 871 | -10/Materials | Entered Mines 905 | -10/Mines | Met a Derelict bent on vengeance 1094 | -10/Mines | A weapon hastily lodged in a ceiling crevice suddenly fell to the ground 1220 | -10/Mines | Discovered new exit (range 16) 1258 | -10/Mines | Discovered new exit (range 11) 1576 | -10/Mines | Lost 4 parts (1p1n1u1w) 1835 | -10/Mines | Entered Materials 1835 | -9/Materials | Evolved 2 slots: Propulsion x1, Utility x1 1836 | -9/Materials | Identified exit to Mines 1900 | -9/Materials | Discovered new exit (range 3) 2148 | -9/Materials | Discovered new exit (range 14) 2876 | -9/Materials | Build established: Scavenger-Mutant 2941 | -9/Materials | Entered Mines 3032 | -9/Mines | Discovered new exit (range 6) 3128 | -9/Mines | Received a Rocket Launcher from a helpful Derelict 3163 | -9/Mines | Learned location of 2 exits from Materials 3201 | -9/Mines | Discovered new exit (range 8) 3264 | -9/Mines | Deemed a non-threat by the Exiles lab entrance 3264 | -9/Mines | Discovered new exit (range 5) 3296 | -9/Mines | Build established: Mutant 3414 | -9/Mines | Found a hidden stash of uninstalled traps 3568 | -9/Mines | Received a Mining Laser from a helpful Derelict 3718 | -9/Mines | Entered Exiles 3718 | -9/Exiles | Accompanied by 1 ally 3719 | -9/Exiles | Identified exit to Mines 3760 | -9/Exiles | Met 8R-AWN 3786 | -9/Exiles | Met EX-HEX 3847 | -9/Exiles | Met EX-DEC 3875 | -9/Exiles | Learned location of Zion (-7) 3925 | -9/Exiles | Discovered exit to Mines (range 14) 4274 | -9/Exiles | Met EX-BIN 4297 | -9/Exiles | Aligned with FarCom system 4299 | -9/Exiles | Given EX-Vault access code 4340 | -9/Exiles | Opened EX-Vault 4348 | -9/Exiles | Found 0b10 Alert Chip 4353 | -9/Exiles | Found Chronowheel 4357 | -9/Exiles | Found Firepult 4394 | -9/Exiles | Warned to stay clear of 0b10 Research branches 4874 | -9/Exiles | Attacked by the Exiles 4999 | -9/Exiles | Core integrity fell below 50% 5092 | -9/Exiles | Core integrity fell below 20% 5104 | -9/Exiles | Destroyed 8R-AWN 5113 | -9/Exiles | Lost 11 parts (1p5n2u3w) 5136 | -9/Exiles | Found Prototype Protection 5281 | -9/Exiles | Destroyed by DAS Turret with DAS Cannon Last Messages --------------- 05108_ Extracted 21 matter. 05110_ Acquired 115 matter. 05114_ Acquired Prototype Leg. 05114_ Identified Adv. Myomer Leg. 05119_ Acquired Adv. Myomer Leg. 05124_ Extracted 100 matter. 05125_ Acquired Med. Matter Pod. 05136_ Acquired Prototype Protection. 05140_ Dropped Prototype Protection. 05142_ as-39081 destroyed. 05161_ The unstable cave ceiling collapses. 05174_ Extracted 50 matter. 05193_ Dropped Med. Matter Pod. 05206_ Extracted 50 matter. 05207_ Extracted 1 energy. 05227_ The unstable cave ceiling collapses. 05246_ Acquired 8 matter. 05248_ Acquired 11 matter. 05249_ Acquired 7 matter. 05280_ Knocked back. Map ----- +----------------------------------------------------+ | ??????????????????????????????????????#" | | ??????????????????????????????????????#" ## | | #?????????????????????????????????????#""""""?# | | #??????????????????????????????????????#"###??# | | #?????????????????????????????????????????????# | | ??????????????????????????????????????????????# | | #????????????????????????????????????????????## | | #????????????#######?????????????????????????#" | | #######??????#!!! "#?????????????????????????#" | | #""##?????# "#?????????????????????????#" | | #?????# "#?????????????????????????#" | | ##???## ""#?????????????????????????#" | | #####" ""#????????????? ???????????#" | | ##" ""#????????????" """#???????## | | #" ###????????????" ?????????# | | "## #####?????????"" ?????????#" | | ###### #?????????"" "#????????#" | | ?????### #####??????? ""?????????#" | | #######" ! # #????????" "?????????##" | | !!""""" ! ##???????# #????????##"" | | ! ### # ###???### ###?######"" | | ! ] #?#; ""#####X# #"###""""""" | | ! "#?#; """""" " "" | | !""""" """ ###"# " """ " | | ######### ###?### % " " | | ????????# #?????#### @ | | ????????# #????????### % | | ????????# #??????????#; | | ????????# #??????????### | | ????????# #????????????## | | ????????# #????????????? """""" | | ????????# #????????????# ######" | | ????????# #????????????# ""##????## | | ????????? ?????????????#""" """##??????? | | ????????? ?????????????""" """##???????? | | ????????? ?????????????""" ""#????????? | | ????????? ????????????#"" ########??# | | ????????? ?????????????""" ## #### | | ???????????????????????"" t """ | | ???????????????????????#"" | | ???????????????????????#""" | | ????????????????????????# | | ????????????????????????#" " | | ????????????????????????#"""" ""## | | ????????????????????????#"" ""#### | | ?????????????????????????? """"##??# | | ?????????????????????????""" """#??## | | ?????????????????????????? ""##??#! | | ??????????????????????????"" """##???#" | | ???????????????????????????""" #?????#" | +----------------------------------------------------+ Best States ------------- Heat Dissipation 42 Energy Generation 12 Energy Capacity 265 Matter Stores 300 Matter Capacity 300 Sight Range 16 Terrain Scan Density 10 Armor Coverage 450 Evasion (%) 40 Targeting Accuracy 6 Recoil Reduction 3 Item Schematics ----------------- None Robot Schematics ------------------ None Fabricated ------------ Nothing Alien Tech Used ----------------- None Achievements -------------- None Challenges ------------ None Game ------ Seed ChargeGravityClaws Manual? 0 Play Time 00:20:51 Cumulative 399.9 hours Start 2023.04.07 @ 13:11:50 End 2023.04.07 @ 13:32:06 Sessions 1 Manual Loads 0 Difficulty Rogue Special Mode None Game No. 484 Rogue 397 Adventurer 87 Explorer 0 Win Type - Total 20 Types 7/0/11/1/1/0/0/0/0 Lore% 88 Gallery% 91 Achievement% 73 Wizard Run 0 Options --------- ASCII 0 Keyboard 1 Movement Numpad Keybinds 0 Fullscreen 1 Font 18/SmallcapsGlow Map View 76x50 Tactical HUD 1 Map Filters NONE Filters NONE Steam 1 RUN: 6f461c04-b822-4bf1-9534-ad2f94ae5788